{"text_format":"3","workbook":"xlsx","n_sheets":4,"sheets":["Начало","Бюджет свадьбы","Одежда-Прием-Музыка-Фото","Оформл-Цветы-Подарки-Поездки"],"not_rendered":{"charts":1,"defined_names":22},"read":"whole","date_system":"1900"}

{"sheet":"Начало","index":0,"n_rows":7,"n_cols":2,"rows_kept":7}
[null,"ОБ ЭТОМ ШАБЛОНЕ"]
[null,"Используйте этот шаблон, чтобы следить за расходами на свадьбу."]
[null,"Введите запланированные и фактические расходы в различных категориях на разных листах."]
[null,"Сводный бюджет свадьбы и диаграмма обновляются автоматически."]
[null,"Примечание "]
[null,"В столбце A каждого листа содержатся дополнительные инструкции. Их текст намерено скрыт. Чтобы удалить этот текст, выделите столбец A и нажмите клавишу DELETE. Чтобы отобразить текст, выделите столбец A и измените цвет шрифта."]
[null,"Чтобы получить дополнительные сведения о конкретной таблице, щелкните в ней ячейку, нажмите клавиши SHIFT+F10 и выберите пункт «Таблица», а затем — «Замещающий текст»."]

{"sheet":"Бюджет свадьбы","index":1,"n_rows":19,"n_cols":6,"rows_kept":19,"merged":[[2,2,4,5],[18,2,42,5]]}
["Создайте на этом листе бюджет свадьбы. Введите сведения на листах «Одежда-Прием-Музыка-Фото» и «Оформл-Цветы-Подарки-Поездки», чтобы обновить сводные данные и диаграмму на текущем листе. В ячейках этого столбца содержатся полезные инструкции о том, как использовать этот лист. В ячейке C1 находится надпись «Дата свадьбы».",null,"Дата свадьбы:"]
["Введите дата свадьбы в ячейке C2. В ячейке E2 автоматически вычисляется количество осталось дней.",null,{"$f":"TODAY()+365","v":"2019-12-05"},"Осталось дней:",{"$f":"C2-TODAY()","v":365}]
["Название этого листа указано в ячейке C3. Дальнейшие инструкции содержатся в ячейке A6.",null,"Сводный бюджет свадьбы"]
[]
[]
["Таблица «Сводный бюджет», начиная с ячейки C6, обновляется автоматически. Дальнейшие инструкции содержатся в ячейке A19.",null,"КАТЕГОРИЯ","ЗАПЛАНИРОВАННЫЕ","ФАКТИЧЕСКИЕ","ОТКЛОНЕНИЕ"]
[null,null,"Одежда и украшения",{"$f":"Одежда_и_украшения_итого_план","v":{"v":9490,"d":"9,490.00"}},{"$f":"Одежда_и_украшения_итого_факт","v":{"v":9770,"d":"9,770.00"}},{"$f":"СводныйБюджет[[#This Row],[ЗАПЛАНИРОВАННЫЕ]]-СводныйБюджет[[#This Row],[ФАКТИЧЕСКИЕ]]","v":{"v":-280,"d":"-280.00"}}]
[null,null,"Прием",{"$f":"Прием_итого_план","v":{"v":1050,"d":"1,050.00"}},{"$f":"Прием_итого_факт","v":{"v":928,"d":"928.00"}},{"$f":"СводныйБюджет[[#This Row],[ЗАПЛАНИРОВАННЫЕ]]-СводныйБюджет[[#This Row],[ФАКТИЧЕСКИЕ]]","v":{"v":122,"d":"122.00"}}]
[null,null,"Музыка",{"$f":"Музыка_развлечения_итого_план","v":{"v":600,"d":"600.00"}},{"$f":"Музыка_развлечения_итого_факт","v":{"v":400,"d":"400.00"}},{"$f":"СводныйБюджет[[#This Row],[ЗАПЛАНИРОВАННЫЕ]]-СводныйБюджет[[#This Row],[ФАКТИЧЕСКИЕ]]","v":{"v":200,"d":"200.00"}}]
[null,null,"Печатные материалы",{"$f":"Печатные_материалы_бланки_итого_план","v":{"v":935,"d":"935.00"}},{"$f":"Печатные_материалы_бланки_итого_факт","v":{"v":870,"d":"870.00"}},{"$f":"СводныйБюджет[[#This Row],[ЗАПЛАНИРОВАННЫЕ]]-СводныйБюджет[[#This Row],[ФАКТИЧЕСКИЕ]]","v":{"v":65,"d":"65.00"}}]
[null,null,"Фотографии",{"$f":"Фотографии_итого_план","v":{"v":1625,"d":"1,625.00"}},{"$f":"Фотографии_итого_факт","v":{"v":1575,"d":"1,575.00"}},{"$f":"СводныйБюджет[[#This Row],[ЗАПЛАНИРОВАННЫЕ]]-СводныйБюджет[[#This Row],[ФАКТИЧЕСКИЕ]]","v":{"v":50,"d":"50.00"}}]
[null,null,"Оформление",{"$f":"Оформление_итого_план","v":{"v":700,"d":"700.00"}},{"$f":"Оформление_итого_факт","v":{"v":720,"d":"720.00"}},{"$f":"СводныйБюджет[[#This Row],[ЗАПЛАНИРОВАННЫЕ]]-СводныйБюджет[[#This Row],[ФАКТИЧЕСКИЕ]]","v":{"v":-20,"d":"-20.00"}}]
[null,null,"Цветы",{"$f":"Цветы_итого_план","v":{"v":900,"d":"900.00"}},{"$f":"Цветы_итого_факт","v":{"v":850,"d":"850.00"}},{"$f":"СводныйБюджет[[#This Row],[ЗАПЛАНИРОВАННЫЕ]]-СводныйБюджет[[#This Row],[ФАКТИЧЕСКИЕ]]","v":{"v":50,"d":"50.00"}}]
[null,null,"Подарки",{"$f":"Подарки_итого_план","v":{"v":1345,"d":"1,345.00"}},{"$f":"Подарки_итого_факт","v":{"v":1075,"d":"1,075.00"}},{"$f":"СводныйБюджет[[#This Row],[ЗАПЛАНИРОВАННЫЕ]]-СводныйБюджет[[#This Row],[ФАКТИЧЕСКИЕ]]","v":{"v":270,"d":"270.00"}}]
[null,null,"Поездки",{"$f":"Поездки_транспорт_итого_план","v":{"v":100,"d":"100.00"}},{"$f":"Поездки_транспорт_итого_факт","v":{"v":165,"d":"165.00"}},{"$f":"СводныйБюджет[[#This Row],[ЗАПЛАНИРОВАННЫЕ]]-СводныйБюджет[[#This Row],[ФАКТИЧЕСКИЕ]]","v":{"v":-65,"d":"-65.00"}}]
[null,null,"Прочее",{"$f":"Прочие_расходы_итого_план","v":{"v":885,"d":"885.00"}},{"$f":"Прочие_расходы_итого_факт","v":{"v":1021,"d":"1,021.00"}},{"$f":"СводныйБюджет[[#This Row],[ЗАПЛАНИРОВАННЫЕ]]-СводныйБюджет[[#This Row],[ФАКТИЧЕСКИЕ]]","v":{"v":-136,"d":"-136.00"}}]
[null,null,"Общие расходы",{"$f":"SUBTOTAL(109,СводныйБюджет[ЗАПЛАНИРОВАННЫЕ])","v":{"v":17630,"d":"17,630.00"}},{"$f":"SUBTOTAL(109,СводныйБюджет[ФАКТИЧЕСКИЕ])","v":{"v":17374,"d":"17,374.00"}},{"$f":"SUBTOTAL(109,СводныйБюджет[ОТКЛОНЕНИЕ])","v":{"v":256,"d":"256.00"}}]
[]
["Круговая диаграмма в ячейке C19 обновляется автоматически.",null,"Круговая диаграмма с процентными долями расходов по каждой категории представлена в этой ячейке."]

{"sheet":"Одежда-Прием-Музыка-Фото","index":2,"n_rows":56,"n_cols":6,"rows_kept":56,"merged":[[16,1,16,4],[28,1,28,4],[29,1,29,4],[35,1,35,4],[48,1,48,4]]}
["Введите запланированные и фактические расходы для каждой категория в соответствующих таблицах на этом листе. Сумма отклонение вычисляется автоматически. Надпись «Одежда и украшения» расположена в ячейке справа. В ячейках этого столбца содержатся полезные инструкции о том, как использовать этот лист. Нажмите клавишу СТРЕЛКА ВНИЗ, чтобы начать.","Одежда и украшения",{"$nulls":3}," "]
[" Введите сведения в таблице «Одежда и украшения», начиная с ячейки справа. Дальнейшие инструкции содержатся в ячейке A18.","КАТЕГОРИЯ","ЗАПЛАНИРОВАННЫЕ","ФАКТИЧЕСКИЕ","ОТКЛОНЕНИЕ"," "]
[null,"Помолвочные кольца",{"v":1500,"d":"1,500.00"},{"v":1500,"d":"1,500.00"},{"$f":"'Одежда-Прием-Музыка-Фото'!$C3-'Одежда-Прием-Музыка-Фото'!$D3","v":{"v":0,"d":"0.00"}}]
[null,"Кольцо — первый супруг",{"v":2000,"d":"2,000.00"},{"v":2300,"d":"2,300.00"},{"$f":"'Одежда-Прием-Музыка-Фото'!$C4-'Одежда-Прием-Музыка-Фото'!$D4","v":{"v":-300,"d":"-300.00 "}}]
[null,"Платье или смокинг — первый супруг",{"v":3000,"d":"3,000.00"},{"v":2750,"d":"2,750.00"},{"$f":"'Одежда-Прием-Музыка-Фото'!$C5-'Одежда-Прием-Музыка-Фото'!$D5","v":{"v":250,"d":"250.00"}}]
[null,"Вуаль или головное украшение — первый супруг",{"v":500,"d":"500.00"},{"v":500,"d":"500.00"},{"$f":"'Одежда-Прием-Музыка-Фото'!$C6-'Одежда-Прием-Музыка-Фото'!$D6","v":{"v":0,"d":"0.00"}}]
[null,"Обувь — первый супруг",{"v":350,"d":"350.00"},{"v":300,"d":"300.00"},{"$f":"'Одежда-Прием-Музыка-Фото'!$C7-'Одежда-Прием-Музыка-Фото'!$D7","v":{"v":50,"d":"50.00"}}]
[null,"Ювелирные украшения — первый супруг",{"v":400,"d":"400.00"},{"v":550,"d":"550.00"},{"$f":"'Одежда-Прием-Музыка-Фото'!$C8-'Одежда-Прием-Музыка-Фото'!$D8","v":{"v":-150,"d":"-150.00 "}}]
[null,"Трикотаж — первый супруг",{"v":20,"d":"20.00"},{"v":20,"d":"20.00"},{"$f":"'Одежда-Прием-Музыка-Фото'!$C9-'Одежда-Прием-Музыка-Фото'!$D9","v":{"v":0,"d":"0.00"}}]
[null,"Кольцо — второй супруг",{"v":300,"d":"300.00"},{"v":250,"d":"250.00"},{"$f":"'Одежда-Прием-Музыка-Фото'!$C10-'Одежда-Прием-Музыка-Фото'!$D10","v":{"v":50,"d":"50.00"}}]
[null,"Платье или смокинг — второй супруг",{"v":300,"d":"300.00"},{"v":350,"d":"350.00"},{"$f":"'Одежда-Прием-Музыка-Фото'!$C11-'Одежда-Прием-Музыка-Фото'!$D11","v":{"v":-50,"d":"-50.00 "}}]
[null,"Вуаль или головное украшение — второй супруг",{"v":500,"d":"500.00"},{"v":500,"d":"500.00"},{"$f":"'Одежда-Прием-Музыка-Фото'!$C12-'Одежда-Прием-Музыка-Фото'!$D12","v":{"v":0,"d":"0.00"}}]
[null,"Обувь — второй супруг",{"v":200,"d":"200.00"},{"v":175,"d":"175.00"},{"$f":"'Одежда-Прием-Музыка-Фото'!$C13-'Одежда-Прием-Музыка-Фото'!$D13","v":{"v":25,"d":"25.00"}}]
[null,"Ювелирные украшения — второй супруг",{"v":400,"d":"400.00"},{"v":550,"d":"550.00"},{"$f":"'Одежда-Прием-Музыка-Фото'!$C14-'Одежда-Прием-Музыка-Фото'!$D14","v":{"v":-150,"d":"-150.00 "}}]
[null,"Трикотаж — второй супруг",{"v":20,"d":"20.00"},{"v":25,"d":"25.00"},{"$f":"'Одежда-Прием-Музыка-Фото'!$C15-'Одежда-Прием-Музыка-Фото'!$D15","v":{"v":-5,"d":"-5.00 "}}]
[null,"Итого — одежда и украшения",{"$f":"SUBTOTAL(109,ОдеждаИУкрашения[ЗАПЛАНИРОВАННЫЕ])","v":{"v":9490,"d":"9,490.00"}},{"$f":"SUBTOTAL(109,ОдеждаИУкрашения[ФАКТИЧЕСКИЕ])","v":{"v":9770,"d":"9,770.00"}},{"$f":"SUBTOTAL(109,ОдеждаИУкрашения[ОТКЛОНЕНИЕ])","v":{"v":-280,"d":"-280.00 "}}]
[]
["Надпись «Прием» расположена в ячейке справа.","Прием*"]
["Введите расходы на прием, кроме расходов на развлечения и оформление, в таблице, начиная с ячейки справа. Дальнейшие инструкции содержатся в ячейке A31.","КАТЕГОРИЯ","ЗАПЛАНИРОВАННЫЕ","ФАКТИЧЕСКИЕ","ОТКЛОНЕНИЕ"]
[null,"Плата за помещение или зал",{"v":200,"d":"200.00"},{"v":150,"d":"150.00"},{"$f":"'Одежда-Прием-Музыка-Фото'!$C20-'Одежда-Прием-Музыка-Фото'!$D20","v":{"v":50,"d":"50.00"}}]
[null,"Столы и стулья",{"v":100,"d":"100.00"},{"v":50,"d":"50.00"},{"$f":"'Одежда-Прием-Музыка-Фото'!$C21-'Одежда-Прием-Музыка-Фото'!$D21","v":{"v":50,"d":"50.00"}}]
[null,"Еда",{"v":0,"d":"0.00"},{"v":0,"d":"0.00"},{"$f":"'Одежда-Прием-Музыка-Фото'!$C22-'Одежда-Прием-Музыка-Фото'!$D22","v":{"v":0,"d":"0.00"}}]
[null,"Напитки",{"v":0,"d":"0.00"},{"v":0,"d":"0.00"},{"$f":"'Одежда-Прием-Музыка-Фото'!$C23-'Одежда-Прием-Музыка-Фото'!$D23","v":{"v":0,"d":"0.00"}}]
[null,"Скатерти",{"v":0,"d":"0.00"},{"v":0,"d":"0.00"},{"$f":"'Одежда-Прием-Музыка-Фото'!$C24-'Одежда-Прием-Музыка-Фото'!$D24","v":{"v":0,"d":"0.00"}}]
[null,"Торт",{"v":700,"d":"700.00"},{"v":700,"d":"700.00"},{"$f":"'Одежда-Прием-Музыка-Фото'!$C25-'Одежда-Прием-Музыка-Фото'!$D25","v":{"v":0,"d":"0.00"}}]
[null,"Сувениры",{"v":50,"d":"50.00"},{"v":28,"d":"28.00"},{"$f":"'Одежда-Прием-Музыка-Фото'!$C26-'Одежда-Прием-Музыка-Фото'!$D26","v":{"v":22,"d":"22.00"}}]
[null,"Обслуживающий персонал и чаевые",{"v":0,"d":"0.00"},{"v":0,"d":"0.00"},{"$f":"'Одежда-Прием-Музыка-Фото'!$C27-'Одежда-Прием-Музыка-Фото'!$D27","v":{"v":0,"d":"0.00"}}]
[null,"Итого — прием",{"$f":"SUBTOTAL(109,Прием[ЗАПЛАНИРОВАННЫЕ])","v":{"v":1050,"d":"1,050.00"}},{"$f":"SUBTOTAL(109,Прием[ФАКТИЧЕСКИЕ])","v":{"v":928,"d":"928.00"}},{"$f":"SUBTOTAL(109,Прием[ОТКЛОНЕНИЕ])","v":{"v":122,"d":"122.00"}}]
[null,"* Кроме развлечений и оформления"]
[]
["Надпись «Музыка и развлечения» расположена в ячейке справа.","Музыка и развлечения"]
["Введите сведения в таблице «Музыка», начиная с ячейки справа. Дальнейшие инструкции содержатся в ячейке A37.","КАТЕГОРИЯ","ЗАПЛАНИРОВАННЫЕ","ФАКТИЧЕСКИЕ","ОТКЛОНЕНИЕ"]
[null,"Музыканты для церемонии",{"v":400,"d":"400.00"},{"v":400,"d":"400.00"},{"$f":"'Одежда-Прием-Музыка-Фото'!$C33-'Одежда-Прием-Музыка-Фото'!$D33","v":{"v":0,"d":"0.00"}}]
[null,"Музыкальная группа или диджей для приема",{"v":200,"d":"200.00"},{"v":0,"d":"0.00"},{"$f":"'Одежда-Прием-Музыка-Фото'!$C34-'Одежда-Прием-Музыка-Фото'!$D34","v":{"v":200,"d":"200.00"}}]
[null,"Итого — музыка и развлечения",{"$f":"SUBTOTAL(109,Музыка[ЗАПЛАНИРОВАННЫЕ])","v":{"v":600,"d":"600.00"}},{"$f":"SUBTOTAL(109,Музыка[ФАКТИЧЕСКИЕ])","v":{"v":400,"d":"400.00"}},{"$f":"SUBTOTAL(109,Музыка[ОТКЛОНЕНИЕ])","v":{"v":200,"d":"200.00"}}]
[]
["Надпись «Печатные материалы и бланки» расположена в ячейке справа.","Печатные материалы и бланки"]
["Введите сведения в таблице «Печатные материалы», начиная с ячейки справа. Дальнейшие инструкции содержатся в ячейке A50.","КАТЕГОРИЯ","ЗАПЛАНИРОВАННЫЕ","ФАКТИЧЕСКИЕ","ОТКЛОНЕНИЕ"]
[null,"Приглашения",{"v":500,"d":"500.00"},{"v":450,"d":"450.00"},{"$f":"'Одежда-Прием-Музыка-Фото'!$C39-'Одежда-Прием-Музыка-Фото'!$D39","v":{"v":50,"d":"50.00"}}]
[null,"Объявления",{"v":200,"d":"200.00"},{"v":175,"d":"175.00"},{"$f":"'Одежда-Прием-Музыка-Фото'!$C40-'Одежда-Прием-Музыка-Фото'!$D40","v":{"v":25,"d":"25.00"}}]
[null,"Благодарственные открытки",{"v":100,"d":"100.00"},{"v":100,"d":"100.00"},{"$f":"'Одежда-Прием-Музыка-Фото'!$C41-'Одежда-Прием-Музыка-Фото'!$D41","v":{"v":0,"d":"0.00"}}]
[null,"Индивидуальные канцтовары",{"v":0,"d":"0.00"},{"v":0,"d":"0.00"},{"$f":"'Одежда-Прием-Музыка-Фото'!$C42-'Одежда-Прием-Музыка-Фото'!$D42","v":{"v":0,"d":"0.00"}}]
[null,"Книга для записей",{"v":25,"d":"25.00"},{"v":25,"d":"25.00"},{"$f":"'Одежда-Прием-Музыка-Фото'!$C43-'Одежда-Прием-Музыка-Фото'!$D43","v":{"v":0,"d":"0.00"}}]
[null,"Программы",{"v":75,"d":"75.00"},{"v":80,"d":"80.00"},{"$f":"'Одежда-Прием-Музыка-Фото'!$C44-'Одежда-Прием-Музыка-Фото'!$D44","v":{"v":-5,"d":"-5.00 "}}]
[null,"Салфетки для торжества",{"v":35,"d":"35.00"},{"v":40,"d":"40.00"},{"$f":"'Одежда-Прием-Музыка-Фото'!$C45-'Одежда-Прием-Музыка-Фото'!$D45","v":{"v":-5,"d":"-5.00 "}}]
[null,"Спичечные коробки",{"v":0,"d":"0.00"},{"v":0,"d":"0.00"},{"$f":"'Одежда-Прием-Музыка-Фото'!$C46-'Одежда-Прием-Музыка-Фото'!$D46","v":{"v":0,"d":"0.00"}}]
[null,"Каллиграфия",{"v":0,"d":"0.00"},{"v":0,"d":"0.00"},{"$f":"'Одежда-Прием-Музыка-Фото'!$C47-'Одежда-Прием-Музыка-Фото'!$D47","v":{"v":0,"d":"0.00"}}]
[null,"Итого — печатные материалы и бланки",{"$f":"SUBTOTAL(109,ПечатныеМатериалы[ЗАПЛАНИРОВАННЫЕ])","v":{"v":935,"d":"935.00"}},{"$f":"SUBTOTAL(109,ПечатныеМатериалы[ФАКТИЧЕСКИЕ])","v":{"v":870,"d":"870.00"}},{"$f":"SUBTOTAL(109,ПечатныеМатериалы[ОТКЛОНЕНИЕ])","v":{"v":65,"d":"65.00"}}]
[]
["Надпись «Фотографии» расположена в ячейке справа.","Фотографии"]
["Введите сведения в таблице «Фотографии», начиная с ячейки справа.","КАТЕГОРИЯ","ЗАПЛАНИРОВАННЫЕ","ФАКТИЧЕСКИЕ","ОТКЛОНЕНИЕ"]
[null,"Официальные",{"v":1300,"d":"1,300.00"},{"v":1300,"d":"1,300.00"},{"$f":"'Одежда-Прием-Музыка-Фото'!$C52-'Одежда-Прием-Музыка-Фото'!$D52","v":{"v":0,"d":"0.00"}}]
[null,"Дополнительные экземпляры",{"v":25,"d":"25.00"},{"v":25,"d":"25.00"},{"$f":"'Одежда-Прием-Музыка-Фото'!$C53-'Одежда-Прием-Музыка-Фото'!$D53","v":{"v":0,"d":"0.00"}}]
[null,"Фотоальбомы",{"v":100,"d":"100.00"},{"v":100,"d":"100.00"},{"$f":"'Одежда-Прием-Музыка-Фото'!$C54-'Одежда-Прием-Музыка-Фото'!$D54","v":{"v":0,"d":"0.00"}}]
[null,"Видео",{"v":200,"d":"200.00"},{"v":150,"d":"150.00"},{"$f":"'Одежда-Прием-Музыка-Фото'!$C55-'Одежда-Прием-Музыка-Фото'!$D55","v":{"v":50,"d":"50.00"}}]
[null,"Итого — фотографии",{"$f":"SUBTOTAL(109,Фотографии[ЗАПЛАНИРОВАННЫЕ])","v":{"v":1625,"d":"1,625.00"}},{"$f":"SUBTOTAL(109,Фотографии[ФАКТИЧЕСКИЕ])","v":{"v":1575,"d":"1,575.00"}},{"$f":"SUBTOTAL(109,Фотографии[ОТКЛОНЕНИЕ])","v":{"v":50,"d":"50.00"}}]

{"sheet":"Оформл-Цветы-Подарки-Поездки","index":3,"n_rows":48,"n_cols":5,"rows_kept":48,"merged":[[8,1,8,4],[9,1,9,4],[18,1,18,4],[27,1,27,4],[34,1,34,4]]}
["Введите запланированные и фактические расходы для каждой категория в соответствующих таблицах на этом листе. Сумма отклонение вычисляется автоматически. Надпись «Оформление» расположена в ячейке справа. В ячейках этого столбца содержатся полезные инструкции о том, как использовать этот лист. Нажмите клавишу СТРЕЛКА ВНИЗ, чтобы начать.","Оформление*"]
["Введите расходы на оформление, кроме расходов на цветы, в таблице, начиная с ячейки справа. Дальнейшие инструкции содержатся в ячейке A11.","КАТЕГОРИЯ","ЗАПЛАНИРОВАННЫЕ","ФАКТИЧЕСКИЕ","ОТКЛОНЕНИЕ"]
[null,"Украшения для сидячих мест",{"v":0,"d":"0.00"},{"v":0,"d":"0.00"},{"$f":"'Оформл-Цветы-Подарки-Поездки'!$C3-'Оформл-Цветы-Подарки-Поездки'!$D3","v":{"v":0,"d":"0.00"}}]
[null,"Украшения для стола",{"v":300,"d":"300.00"},{"v":320,"d":"320.00"},{"$f":"'Оформл-Цветы-Подарки-Поездки'!$C4-'Оформл-Цветы-Подарки-Поездки'!$D4","v":{"v":-20,"d":"-20.00 "}}]
[null,"Свечи",{"v":100,"d":"100.00"},{"v":75,"d":"75.00"},{"$f":"'Оформл-Цветы-Подарки-Поездки'!$C5-'Оформл-Цветы-Подарки-Поездки'!$D5","v":{"v":25,"d":"25.00"}}]
[null,"Освещение",{"v":100,"d":"100.00"},{"v":75,"d":"75.00"},{"$f":"'Оформл-Цветы-Подарки-Поездки'!$C6-'Оформл-Цветы-Подарки-Поездки'!$D6","v":{"v":25,"d":"25.00"}}]
[null,"Воздушные шары",{"v":200,"d":"200.00"},{"v":250,"d":"250.00"},{"$f":"'Оформл-Цветы-Подарки-Поездки'!$C7-'Оформл-Цветы-Подарки-Поездки'!$D7","v":{"v":-50,"d":"-50.00 "}}]
[null,"Итого — оформление",{"$f":"SUBTOTAL(109,Оформление[ЗАПЛАНИРОВАННЫЕ])","v":{"v":700,"d":"700.00"}},{"$f":"SUBTOTAL(109,Оформление[ФАКТИЧЕСКИЕ])","v":{"v":720,"d":"720.00"}},{"$f":"SUBTOTAL(109,Оформление[ОТКЛОНЕНИЕ])","v":{"v":-20,"d":"-20.00 "}}]
[null,"* Кроме цветов"]
[]
["Надпись «Цветы» расположена в ячейке справа.","Цветы"]
["Введите сведения в таблице «Цветы», начиная с ячейки справа. Дальнейшие инструкции содержатся в ячейке A20.","КАТЕГОРИЯ","ЗАПЛАНИРОВАННЫЕ","ФАКТИЧЕСКИЕ","ОТКЛОНЕНИЕ"]
[null,"Букеты",{"v":500,"d":"500.00"},{"v":450,"d":"450.00"},{"$f":"'Оформл-Цветы-Подарки-Поездки'!$C13-'Оформл-Цветы-Подарки-Поездки'!$D13","v":{"v":50,"d":"50.00"}}]
[null,"Бутоньерки",{"v":0,"d":"0.00"},{"v":0,"d":"0.00"},{"$f":"'Оформл-Цветы-Подарки-Поездки'!$C14-'Оформл-Цветы-Подарки-Поездки'!$D14","v":{"v":0,"d":"0.00"}}]
[null,"Цветочные браслеты",{"v":0,"d":"0.00"},{"v":0,"d":"0.00"},{"$f":"'Оформл-Цветы-Подарки-Поездки'!$C15-'Оформл-Цветы-Подарки-Поездки'!$D15","v":{"v":0,"d":"0.00"}}]
[null,"Церемония",{"v":400,"d":"400.00"},{"v":400,"d":"400.00"},{"$f":"'Оформл-Цветы-Подарки-Поездки'!$C16-'Оформл-Цветы-Подарки-Поездки'!$D16","v":{"v":0,"d":"0.00"}}]
[null,"Прием",{"v":0,"d":"0.00"},{"v":0,"d":"0.00"},{"$f":"'Оформл-Цветы-Подарки-Поездки'!$C17-'Оформл-Цветы-Подарки-Поездки'!$D17","v":{"v":0,"d":"0.00"}}]
[null,"Итого — цветы",{"$f":"SUBTOTAL(109,Цветы[ЗАПЛАНИРОВАННЫЕ])","v":{"v":900,"d":"900.00"}},{"$f":"SUBTOTAL(109,Цветы[ФАКТИЧЕСКИЕ])","v":{"v":850,"d":"850.00"}},{"$f":"SUBTOTAL(109,Цветы[ОТКЛОНЕНИЕ])","v":{"v":50,"d":"50.00"}}]
[]
["Надпись «Подарки» расположена в ячейке справа.","Подарки"]
["Введите сведения в таблице «Подарки», начиная с ячейки справа. Дальнейшие инструкции содержатся в ячейке A29.","КАТЕГОРИЯ","ЗАПЛАНИРОВАННЫЕ","ФАКТИЧЕСКИЕ","ОТКЛОНЕНИЕ"]
[null,"Свидетели",{"v":1000,"d":"1,000.00"},{"v":400,"d":"400.00"},{"$f":"'Оформл-Цветы-Подарки-Поездки'!$C22-'Оформл-Цветы-Подарки-Поездки'!$D22","v":{"v":600,"d":"600.00"}}]
[null,"Первый супруг",{"v":150,"d":"150.00"},{"v":200,"d":"200.00"},{"$f":"'Оформл-Цветы-Подарки-Поездки'!$C23-'Оформл-Цветы-Подарки-Поездки'!$D23","v":{"v":-50,"d":"-50.00 "}}]
[null,"Второй супруг",{"v":150,"d":"150.00"},{"v":200,"d":"200.00"},{"$f":"'Оформл-Цветы-Подарки-Поездки'!$C24-'Оформл-Цветы-Подарки-Поездки'!$D24","v":{"v":-50,"d":"-50.00 "}}]
[null,"Родители",{"v":25,"d":"25.00"},{"v":25,"d":"25.00"},{"$f":"'Оформл-Цветы-Подарки-Поездки'!$C25-'Оформл-Цветы-Подарки-Поездки'!$D25","v":{"v":0,"d":"0.00"}}]
[null,"Ораторы и другие участники",{"v":20,"d":"20.00"},{"v":250,"d":"250.00"},{"$f":"'Оформл-Цветы-Подарки-Поездки'!$C26-'Оформл-Цветы-Подарки-Поездки'!$D26","v":{"v":-230,"d":"-230.00 "}}]
[null,"Итого — подарки",{"$f":"SUBTOTAL(109,Подарки[ЗАПЛАНИРОВАННЫЕ])","v":{"v":1345,"d":"1,345.00"}},{"$f":"SUBTOTAL(109,Подарки[ФАКТИЧЕСКИЕ])","v":{"v":1075,"d":"1,075.00"}},{"$f":"SUBTOTAL(109,Подарки[ОТКЛОНЕНИЕ])","v":{"v":270,"d":"270.00"}}]
[]
["Надпись «Поездки и транспорт» расположена в ячейке справа.","Поездки и транспорт"]
["Введите сведения в таблице «Поездки», начиная с ячейки справа. Дальнейшие инструкции содержатся в ячейке A36.","КАТЕГОРИЯ","ЗАПЛАНИРОВАННЫЕ","ФАКТИЧЕСКИЕ","ОТКЛОНЕНИЕ"]
[null,"Автомобили и автобусы",{"v":100,"d":"100.00"},{"v":125,"d":"125.00"},{"$f":"'Оформл-Цветы-Подарки-Поездки'!$C31-'Оформл-Цветы-Подарки-Поездки'!$D31","v":{"v":-25,"d":"-25.00 "}}]
[null,"Стоянка",{"v":0,"d":"0.00"},{"v":40,"d":"40.00"},{"$f":"'Оформл-Цветы-Подарки-Поездки'!$C32-'Оформл-Цветы-Подарки-Поездки'!$D32","v":{"v":-40,"d":"-40.00 "}}]
[null,"Такси",{"v":0,"d":"0.00"},{"v":0,"d":"0.00"},{"$f":"'Оформл-Цветы-Подарки-Поездки'!$C33-'Оформл-Цветы-Подарки-Поездки'!$D33","v":{"v":0,"d":"0.00"}}]
[null,"Итого — поездки и транспорт",{"$f":"SUBTOTAL(109,Поездки[ЗАПЛАНИРОВАННЫЕ])","v":{"v":100,"d":"100.00"}},{"$f":"SUBTOTAL(109,Поездки[ФАКТИЧЕСКИЕ])","v":{"v":165,"d":"165.00"}},{"$f":"SUBTOTAL(109,Поездки[ОТКЛОНЕНИЕ])","v":{"v":-65,"d":"-65.00 "}}]
[]
["Надпись «Прочие расходы» расположена в ячейке справа.","Прочие расходы"]
["Введите сведения в таблице «Прочие расходы», начиная с ячейки справа.","КАТЕГОРИЯ","ЗАПЛАНИРОВАННЫЕ","ФАКТИЧЕСКИЕ","ОТКЛОНЕНИЕ"]
[null,"Свадебный регистратор",{"v":0,"d":"0.00"},{"v":0,"d":"0.00"},{"$f":"'Оформл-Цветы-Подарки-Поездки'!$C38-'Оформл-Цветы-Подарки-Поездки'!$D38","v":{"v":0,"d":"0.00"}}]
[null,"Аренда зала или места проведения церемонии",{"v":40,"d":"40.00"},{"v":55,"d":"55.00"},{"$f":"'Оформл-Цветы-Подарки-Поездки'!$C39-'Оформл-Цветы-Подарки-Поездки'!$D39","v":{"v":-15,"d":"-15.00 "}}]
[null,"Координатор свадьбы",{"v":0,"d":"0.00"},{"v":0,"d":"0.00"},{"$f":"'Оформл-Цветы-Подарки-Поездки'!$C40-'Оформл-Цветы-Подарки-Поездки'!$D40","v":{"v":0,"d":"0.00"}}]
[null,"Ужин накануне свадьбы",{"v":450,"d":"450.00"},{"v":450,"d":"450.00"},{"$f":"'Оформл-Цветы-Подарки-Поездки'!$C41-'Оформл-Цветы-Подарки-Поездки'!$D41","v":{"v":0,"d":"0.00"}}]
[null,"Вечеринка по случаю помолвки",{"v":20,"d":"20.00"},{"v":50,"d":"50.00"},{"$f":"'Оформл-Цветы-Подарки-Поездки'!$C42-'Оформл-Цветы-Подарки-Поездки'!$D42","v":{"v":-30,"d":"-30.00 "}}]
[null,"Прием гостей в доме невесты",{"v":30,"d":"30.00"},{"v":20,"d":"20.00"},{"$f":"'Оформл-Цветы-Подарки-Поездки'!$C43-'Оформл-Цветы-Подарки-Поездки'!$D43","v":{"v":10,"d":"10.00"}}]
[null,"Посещение салона красоты",{"v":45,"d":"45.00"},{"v":46,"d":"46.00"},{"$f":"'Оформл-Цветы-Подарки-Поездки'!$C44-'Оформл-Цветы-Подарки-Поездки'!$D44","v":{"v":-1,"d":"-1.00 "}}]
[null,"Мальчишник и девичник",{"v":0,"d":"0.00"},{"v":0,"d":"0.00"},{"$f":"'Оформл-Цветы-Подарки-Поездки'!$C45-'Оформл-Цветы-Подарки-Поездки'!$D45","v":{"v":0,"d":"0.00"}}]
[null,"Поздний завтрак",{"v":300,"d":"300.00"},{"v":400,"d":"400.00"},{"$f":"'Оформл-Цветы-Подарки-Поездки'!$C46-'Оформл-Цветы-Подарки-Поездки'!$D46","v":{"v":-100,"d":"-100.00 "}}]
[null,"Номера в гостинице",{"v":0,"d":"0.00"},{"v":0,"d":"0.00"},{"$f":"'Оформл-Цветы-Подарки-Поездки'!$C47-'Оформл-Цветы-Подарки-Поездки'!$D47","v":{"v":0,"d":"0.00"}}]
[null,"Итого — прочие расходы",{"$f":"SUBTOTAL(109,ПрочиеРасходы[ЗАПЛАНИРОВАННЫЕ])","v":{"v":885,"d":"885.00"}},{"$f":"SUBTOTAL(109,ПрочиеРасходы[ФАКТИЧЕСКИЕ])","v":{"v":1021,"d":"1,021.00"}},{"$f":"SUBTOTAL(109,ПрочиеРасходы[ОТКЛОНЕНИЕ])","v":{"v":-136,"d":"-136.00 "}}]